Cogmind - Beta 15 @@@ ROGUE MODE // 2025.06.05 @ 20:10:43 Player: Olafz Result: Self-destructed Performance ------------- Evolutions (1) 500 Regions Visited (3) 600 Robots Destroyed (17) 85 Value Destroyed (393) 393 Prototype IDs (0) 0 Alien Tech Used (0) 0 Bonus (0) 0 TOTAL SCORE: 1578 Bonus ------- None Cogmind --------- Core Integrity 355/400 Matter 156/500 Energy 160/160 System Corruption 0% Temperature Cool (6) Movement Core (600) Ox11 Location -9/Materials Parts ------- > --- POWER (1) -------- Light Nuclear Core > --- PROPULSION (2) --- (None) > --- UTILITY (4) ------ Large Storage Unit High-capacity Matter Pod Visual Processing Unit Terrain Scan Processor > --- WEAPON (2) ------- Heavy Assault Rifle Grenade Launcher > --- INVENTORY (15) --- Ion Engine Ion Engine Ion Engine Light Nuclear Core Large Storage Unit EM Pulse Gun Heavy Assault Rifle Heavy Assault Rifle Heavy Assault Rifle Heavy Assault Rifle Heavy Assault Rifle Rocket Launcher Peak State ------------ > --- POWER ------------ Light Nuclear Core > --- PROPULSION ------- Light Treads Light Treads > --- UTILITY ---------- Large Storage Unit Visual Processing Unit Terrain Scan Processor > --- WEAPON ----------- Heavy Assault Rifle Grenade Launcher > --- INVENTORY -------- Ion Engine Ion Engine Ion Engine Light Nuclear Core Large Storage Unit EM Pulse Gun Heavy Assault Rifle Heavy Assault Rifle Heavy Assault Rifle Heavy Assault Rifle Heavy Assault Rifle Rocket Launcher [Rating: 15] Favorites ----------- Power Light Nuclear Core Engine Ion Engine Power Core Light Nuclear Core Propulsion Light Treads Treads Light Treads Utility Visual Processing Unit Storage Large Storage Unit Processor Visual Processing Unit Weapon Heavy Assault Rifle Ballistic Gun Heavy Assault Rifle Launcher Grenade Launcher Build | -11 -10 -10 -9 ------- Run | Yrd Mat Min Mat Slots Evolved 2 | . . . 2 Power . | . . . . Propulsion . | . . . . Utility 2 | . . . 2 Weapon . | . . . . Parts Attached 18 | 6 9 1 2 Power 2 | 1 1 . . Engine 1 | 1 . . . Core 1 | . 1 . . Reactor . | . . . . Propulsion 4 | 2 2 . . Treads 4 | 2 2 . . Leg . | . . . . Wheel . | . . . . Hover . | . . . . Flight . | . . . . Utility 5 | 1 2 . 2 Device . | . . . . Storage 3 | 1 1 . 1 Processor 2 | . 1 . 1 Hackware . | . . . . Protection . | . . . . Artifact . | . . . . Weapon 7 | 2 4 1 . Energy Gun . | . . . . Energy Cannon . | . . . . Ballistic Gun 6 | 2 4 . . Ballistic Cannon . | . . . . Launcher 1 | . . 1 . Special Weapon . | . . . . Impact Weapon . | . . . . Slashing Weapon . | . . . . Piercing Weapon . | . . . . Special Melee Weapon . | . . . . Unidentified Prototypes . | . . . . Parts Lost 6 | . 4 . 2 Power . | . . . . Propulsion 4 | . 2 . 2 Utility . | . . . . Weapon 2 | . 2 . . Highest Loss Streak 2 | . 2 . 1 To Critical Strikes . | . . . . Average Backups 9 | . 9 11 12 Power 2 | . 2 4 4 Propulsion . | . . . . Utility . | . . 1 1 Weapon 6 | . 6 6 7 Tool/Special . | . . . . Unused Backups 10 | . . . 10 Power 3 | . . . 3 Propulsion . | . . . . Utility 1 | . . . 1 Weapon 6 | . . . 6 Tool/Special . | . . . . Average Slot Usage (%) 94 | . 95 100 84 Engine 5 | . 7 . . Core 7 | . 6 14 11 Treads 24 | . 25 28 16 Storage 14 | . 14 14 14 Processor 13 | . 12 14 20 Ballistic Gun 25 | . 28 21 11 Launcher 1 | . . 7 11 Peak Build Rating 15 | 6 13 13 15 Average Rating 11 | 4 11 13 14 On Entrance 8 | . 6 13 13 Naked Turns . | . . . . Heaviest Build 35 | 14 31 31 35 Greatest Support 40 | 40 40 40 40 Greatest Overweight (x) 10 | 1 10 . 1 Average Overweight (x) . | . . . . Largest Inventory Capacity 15 | 8 15 15 15 Average Capacity 13 | 7 13 15 15 Most Carried 12 | 2 12 12 12 Average Carried 9 | . 9 11 12 Final Capacity 15 | 8 15 15 15 Final Carried 12 | 2 11 12 12 Class Distribution -------------------- 100% | Mutant Dominant Class ---------------- Mutant | -10/Materials Mutant | -10/Mines Mutant | -9/Materials Resources | -11 -10 -10 -9 ----------- Run | Yrd Mat Min Mat Matter Collected 550 | 138 392 . 20 Remotely . | . . . . Salvage Created 424 | . 374 13 37 Parts 36 | . 29 . 7 Haulers Intercepted 1 | . 1 . . Recyclers Shooed 1 | . 1 . . Parts Field Recycled . | . . . . Retrieved Matter . | . . . . Parts Self-Destructed . | . . . . Prevented . | . . . . Kills | -11 -10 -10 -9 ------- Run | Yrd Mat Min Mat Combat Hostiles Destroyed 15 | . 9 2 4 Guns 10 | . 9 1 . AOE 5 | . . 1 4 Classes Destroyed 7 | . 5 1 1 Builder 2 | . 1 . 1 Hauler 1 | . 1 . . Watcher 1 | . 1 . . Swarmer 6 | . 3 . 3 Grunt 6 | . 6 . . Sentry 1 | . . . 1 Assembled 2 | . . 2 . Best Kill Streak 7 | . 7 2 3 Combat Bots Only 7 | . 7 2 3 Max Kills in Single Turn 2 | . 1 2 2 Gunslinging . | . . . . Exploded 2 | . . 1 2 Melee . | . . . . Uniques/NPCs Destroyed . | . . . . Combat | -11 -10 -10 -9 -------- Run | Yrd Mat Min Mat Hostile Shots Fired 96 | . 75 2 19 Missed 19 | . 15 2 2 Hits 77 | . 60 . 17 Projectile 77 | . 60 . 17 AOE 1 | . . 1 . Critical Strikes 1 | . . . 1 Damage Taken 919 | . 664 38 217 Core 151 | . 106 . 45 Absorbed by Shields . | . . . . Core Remaining (%) 78 | 100 . 57 . Volleys Fired 44 | . 36 2 6 Largest 2 | . 2 2 2 Hottest 53 | . 46 53 53 Shots Fired 84 | . 69 4 11 Gun 78 | . 69 3 6 Cannon . | . . . . Launcher 6 | . . 1 5 Special . | . . . . Kinetic 78 | . 69 3 6 Thermal . | . . . . Explosive 6 | . . 1 5 Electromagnetic . | . . . . Robot Hit Streak 8 | . 8 2 3 Robot Miss Streak 7 | . 7 1 3 Penetration Max . | . . . . Secondary Targets 5 | . 5 . . Max Gunslinging Chain 1 | . 1 . . Shots Hit Robots 44 | . 37 2 5 Core Hits 27 | . 17 3 7 Critical Kills 1 | . 1 . . Critical Parts Destroyed . | . . . . Critical Strikes 1 | . 1 . . Destroy 1 | . 1 . . Melee Attacks . | . . . . Impact . | . . . . Slashing . | . . . . Piercing . | . . . . Sneak Attacks . | . . . . Combat Hostiles . | . . . . Follow-up Attacks . | . . . . Damage Inflicted 942 | . 591 84 267 Guns 635 | . 591 28 16 Cannons . | . . . . Explosions 307 | . . 56 251 Melee . | . . . . Ramming . | . . . . Kinetic 635 | . 591 28 16 Thermal . | . . . . Explosive 307 | . . 56 251 Electromagnetic . | . . . . Impact . | . . . . Slashing . | . . . . Piercing . | . . . . Highest Corruption . | . . . . Average Corruption . | . . . . Corruption Purged . | . . . . Corruption Blocked . | . . . . Overload Shots . | . . . . Overflow Damage 9 | . . . 9 Projectiles . | . . . . Explosions 9 | . . . 9 Melee . | . . . . Knockbacks . | . . . . Impact . | . . . . Kinetic . | . . . . Secondary . | . . . . Self-Inflicted Damage 22 | . . . 22 Shots 1 | . . . 1 Rammed . | . . . . Targets Rammed . | . . . . Kicked . | . . . . Crushed . | . . . . Highest Temperature 47 | . 47 . 7 Average Temperature 21 | . 23 . 3 Received Heat Transfer 345 | . 273 . 72 Siege Activations . | . . . . Martial Activations . | . . . . Shielding Activations . | . . . . Robots Disrupted . | . . . . Combat Hostiles . | . . . . Robots Corrupted . | . . . . Combat Hostiles . | . . . . Parts Fried . | . . . . Impact Corruptions . | . . . . Robots Melted . | . . . . Combat Hostiles . | . . . . Parts Melted . | . . . . Heat Transferred . | . . . . Parts Sabotaged . | . . . . Parts Stolen . | . . . . Parts Stripped . | . . . . Power Chain Reactions . | . . . . Alert | -11 -10 -10 -9 ------- Run | Yrd Mat Min Mat Maximum Alert Level 1 | . 1 . . Low Security (%) 90 | 100 88 100 100 Level 1 9 | . 11 . . Level 2 . | . . . . Level 3 . | . . . . Level 4 . | . . . . Level 5 . | . . . . High Security . | . . . . Max Security . | . . . . Peak Influence 236 | . 236 34 175 Initial 34 | . . 34 4 Average 71 | . 79 23 79 Influence Increases 561 | . 353 9 199 Destroy 0b10 Robot/C 260 | . 180 . 80 Destroy 0b10 Robot/NC 20 | . 15 . 5 Destroy Leader 74 | . 54 . 20 Successful Hack 14 | . 14 . . Disable Machine 45 | . . . 45 Destroy Structure 58 | . . 9 49 Lose Combat Pursuer 90 | . 90 . . Influence Decreases 416 | . 265 84 67 Entered New Map 63 | . . 54 9 Time Decay 299 | . 225 30 44 Lost Part 54 | . 40 . 14 Squads Dispatched 4 | . 2 . 2 Investigation 1 | . 1 . . Extermination . | . . . . Reinforcement 3 | . 1 . 2 Assault . | . . . . Garrison . | . . . . Intercept . | . . . . Searches Triggered . | . . . . Construction Impeded . | . . . . Haulers Reinforced . | . . . . Active Scanning Responses . | . . . . Cargo Convoy Interrupts . | . . . . Stealth | -11 -10 -10 -9 --------- Run | Yrd Mat Min Mat Distress Signals 2 | . . 2 . Communications Jammed . | . . . . Distress Signals . | . . . . Times Spotted 32 | . 21 5 6 Peak Tracking Total 8 | . 8 4 3 Tactical Retreats 3 | . 3 . . Traps | -11 -10 -10 -9 ------- Run | Yrd Mat Min Mat Traps Triggered 3 | . 3 . . Indirectly . | . . . . Trap Hack Attempts . | . . . . Triggered . | . . . . Disarmed . | . . . . Reprogrammed . | . . . . Reused . | . . . . Traps Extracted . | . . . . Installed . | . . . . Triggered . | . . . . Machines | -11 -10 -10 -9 ---------- Run | Yrd Mat Min Mat Machines Disabled 3 | . . . 3 Max in Single Turn 2 | . . . 2 Machines Repaired . | . . . . Machines Dismantled . | . . . . Machines Sabotaged . | . . . . Overloaded Fab Kills . | . . . . Hacking | -11 -10 -10 -9 --------- Run | Yrd Mat Min Mat Machines Accessed 1 | . 1 . . Terminals 1 | . 1 . . Fabricators . | . . . . Repair Stations . | . . . . Recycling Units . | . . . . Scanalyzers . | . . . . Garrison Access . | . . . . Total Hacks 2 | . 2 . . Successful 1 | . 1 . . Failed 1 | . 1 . . Catastrophic 1 | . 1 . . Database Lockouts . | . . . . Manual 2 | . 2 . . Terminals 2 | . 2 . . Fabricators . | . . . . Repair Stations . | . . . . Recycling Units . | . . . . Scanalyzers . | . . . . Garrison Access . | . . . . Terminal Hacks . | . . . . Fabricator Hacks . | . . . . Repair Station Hacks . | . . . . Recycling Unit Hacks . | . . . . Scanalyzer . | . . . . Garrison Access Hacks . | . . . . Unauthorized Hacks 1 | . 1 . . Terminals 1 | . 1 . . Botnet 1 | . 1 . . Fabricators . | . . . . Repair Stations . | . . . . Recycling Units . | . . . . Scanalyzers . | . . . . Garrison Access . | . . . . Data Cores Recovered . | . . . . Used . | . . . . Hacking Detections 1 | . 1 . . Full Trace Events . | . . . . Feedback Events . | . . . . Feedback Blocked . | . . . . Robot Schematics Acquired . | . . . . Robots Built . | . . . . Authchips . | . . . . Time . | . . . . Total Robot Build Rating . | . . . . Part Schematics Acquired . | . . . . Parts Built . | . . . . Authchips . | . . . . Time . | . . . . Total Part Build Rating . | . . . . Parts Repaired . | . . . . Time . | . . . . Parts Recycled . | . . . . Recycled Matter . | . . . . Retrieved Matter . | . . . . Retrieved Components . | . . . . Parts Scanalyzed . | . . . . Part Schematics Acquired . | . . . . Parts Damaged . | . . . . Bothacking | -11 -10 -10 -9 ------------ Run | Yrd Mat Min Mat Used RIF Installer . | . . . . Robots Hacked . | . . . . Non-combat . | . . . . Combat . | . . . . Robot Hacks Applied . | . . . . Relay Couplers Released . | . . . . Fabnet Peak Effective % . | . . . . Robots Rewired . | . . . . Allies Hacked . | . . . . Hacks Repelled . | . . . . Allies | -11 -10 -10 -9 -------- Run | Yrd Mat Min Mat Total Allies . | . . . . Largest Group . | . . . . Highest-Rated Group . | . . . . Highest-Rated Ally . | . . . . Total Orders . | . . . . Ally Attacks . | . . . . Total Damage . | . . . . Kills . | . . . . Allies Corrupted . | . . . . Allies Melted . | . . . . Intel | -11 -10 -10 -9 ------- Run | Yrd Mat Min Mat Active Infowar (turns) 1108 | . 900 73 135 Optics 1108 | . 900 73 135 Robot Analysis Total . | . . . . Derelict Logs Recovered . | . . . . Drone Launches . | . . . . Drone Recoveries . | . . . . Exploration | -11 -10 -10 -9 ------------- Run | Yrd Mat Min Mat Turns Passed 1312 | 75 1029 73 135 Spaces Moved 666 | 45 522 41 58 Core 19 | 7 12 . . Treads 647 | 38 510 41 58 Legs . | . . . . Wheels . | . . . . Hover . | . . . . Flight . | . . . . Fastest Speed 50 | 50 160 160 160 Average Speed 170 | 145 170 160 197 Slowest Speed 550 | 160 550 160 240 Overloaded Moves . | . . . . Propulsion Burnouts . | . . . . Robots Hopped . | . . . . Potential Cave-ins . | . . . . Cave-ins Triggered . | . . . . Exploration Rate (%) 29 | 3 86 18 12 Regions Visited 3 Branch Regions 1 Pre-discovered Areas . | . . . . Known Exits Taken . | . . . . Unknown Exits Taken 3 | 1 1 1 . Scrap Searched . | . . . . Spaces Dug . | . . . . Terrain Destroyed 70 | . . 9 61 Melee . | . . . . Projectile . | . . . . AOE 70 | . . 9 61 Terrain Rammed . | . . . . Walls Destroyed . | . . . . Machines Disabled . | . . . . Actions | -11 -10 -10 -9 --------- Run | Yrd Mat Min Mat Total 751 | 52 589 44 66 Wait 5 | . 5 . . Move 663 | 44 521 40 58 Hop . | . . . . Pick Up 13 | 2 10 1 . Fast Attach 16 | 6 8 . 2 Attach 2 | . 2 . . Detach . | . . . . Swap 5 | . 4 1 . Drop 3 | . 3 . . Fire 44 | . 36 2 6 Melee . | . . . . Ram . | . . . . Kick . | . . . . Crush . | . . . . Escape Stasis . | . . . . Rewire . | . . . . Trap . | . . . . Miscellaneous . | . . . . Route ------- -11/Scrapyard -10/Materials (discovered 3 exits: [*Mat x2] / [*Min]) -10/Mines -9/Materials History --------- Turn | Location | Event 5 | -11/Scrapyard | Discovered new exit (range 16) 76 | -11/Scrapyard | Entered Materials 307 | -10/Materials | Build established: Mutant 618 | -10/Materials | Destroyed 7 combat bots 844 | -10/Materials | Discovered new exit (range 12) 1057 | -10/Materials | Discovered new exit (range 5) 1077 | -10/Materials | Discovered new exit (range 18) 1105 | -10/Materials | Entered Mines 1106 | -10/Mines | Assembled infested the area 1112 | -10/Mines | Received a Rocket Launcher from a helpful Derelict 1142 | -10/Mines | Met a Derelict bent on vengeance 1148 | -10/Mines | Discovered new exit (range 18) 1178 | -10/Mines | Entered Materials 1178 | -9/Materials | Evolved 2 slots: Utility x2 1313 | -9/Materials | Self-destructed Last Messages --------------- Y-45 Defender destroyed. The unstable cave ceiling collapses. Acquired Hcp. Matter Pod. The unstable cave ceiling collapses. R-06 Scavenger collects Lgt. Armor Plating. U-05 Engineer lays Concrete. Acquired 20 matter. U-05 Engineer lays Concrete. The unstable cave ceiling collapses. U-05 Engineer lays Concrete. The unstable cave ceiling collapses. U-05 Engineer lays Concrete. The unstable cave ceiling collapses. U-05 Engineer lays Concrete. O-16 Technician: "IFF HANDSHAKE FAILED. SECURING TERMINAL." O-16 Technician uses terminal to summon reinforcements. ALERT: Hostiles spotted, dispatching reinforcements to Terminal M012. O-16 Technician locks terminal. K-01 Serf collects debris. Lgt. Treads destroyed. Map ----- +----------------------------------------------------+ | ?????????????????????????????????????????????????? | | ?????????????????????????????????????????????????? | | ?????????????????????????????????????????????????? | | ????????????????????????????????????????????? | | !! #???????????????????????????????????????????? | | !! #???????????????????????????????????????????? | | ! #???????????????????????????????????????????? | | #???????????????????????????????????????????? | | ???????????????????? ?????????????????????? | | # ???????????????????T ????????????????????? | | # ???????????????????? o ????????????????????? | | # #???????????????????? #????????????????????? | | ???????????????????? #????????????????????? | | #???????????????????? #????????????????????? | | ##??????????????????? g #????????????????????? | | #??????????????????? #????????????????????? | | #??????????????????# #????????????????????? | | ##+##??###########?# #????????????????????? | | #??# # #?# #????????????????????? | | #??## ### #????????????????????? | | #??# # #????????????????????? | | #######+##### ## # #????????????????????? | | # T # # #????????????????????? | | # """ # # ############?????????? | | # """ ! ! + ??????? | | # """ !!! #@ ??????? | | # !!! # ??????? | | # ## # ############?????????? | | ########### # # # #????????????????????? | | ??????????#### ## #????????????????????? | | ?????????????##### #### #????????????????????? | | ?????????????????#####??# +????????????????????? | | ????????????????????????# #????????????????????? | | ????????????????????????# #????????????????????? | | ????????????????????????# k #????????????????????? | | ????????????????????????? #????????????????????? | | ????????????????????????? #????????????????????? | | ????????????????????????? #????????????????????? | | ????????????????????????? #????????????????????? | | ????????????????????????? #????????????????????? | | ????????????????????????? #????????????????????? | | ????????????????????????? ?????????????????????? | | ????????????????????????? ?????????????????????? | | ?????????????????????????????????????????????????? | | ?????????????????????????????????????????????????? | | ?????????????????????????????????????????????????? | | ?????????????????????????????????????????????????? | | ?????????????????????????????????????????????????? | | ?????????????????????????????????????????????????? | | ?????????????????????????????????????????????????? | +----------------------------------------------------+ Best States ------------- Heat Dissipation 28 Energy Generation 14 Energy Capacity 250 Matter Stores 243 Matter Capacity 500 Sight Range 18 Terrain Scan Density 85 Evasion (%) 40 Recoil Reduction 2 Item Schematics ----------------- None Robot Schematics ------------------ None Fabricated ------------ Nothing Repaired ---------- Nothing Alien Tech Used ----------------- None Achievements -------------- None Challenges ------------ None Game ------ Seed SurgeAluminumUnit Manual? 0 Play Time 00:10:34 Cumulative 267.6 hours Start 2025.06.05 @ 19:16:32 End 2025.06.05 @ 20:10:43 Sessions 1 Manual Loads 0 Difficulty Rogue Special Mode None Game No. 506 Rogue 504 Adventurer 2 Explorer 0 Win Type - Total 16 Types 11/0/1/3/1/0/0/0/0/0 Lore% 74 Gallery% 64 Achievement% 58 Wizard Run 0 Options --------- Layout 0 ASCII 0 Keyboard 1 Movement Numpad Keybinds 1 Fullscreen 2 Font 24/Smallcaps Map View 76x50 Zoom Use 0% Tactical HUD 1 Map Filters NONE Filters NONE Steam 1 RUN: 1506723c-57e4-4965-a1d6-eac6e2c96b3f